bitfinex/quotes_ETHUSD_20241212
["timestamp","ask_amount","ask_price","bid_price","bid_amount"]
[1733998665845,1.2783,3898.6,3897.2,2.56593]
[1733998666342,0.55,3898.5,3896.8,4.9889996]
[1733998666748,1.0555,3898.9,3897.0,8.79]
[1733998666957,1.0555,3898.9,3897.8,3.47341893]
[1733998667242,1.0555,3899.3,3897.9,2.56548]
[1733998667461,1.0555,3899.3,3897.8,3.47341893]
[1733998667462,1.1036,3899.7,3898.3,3.47341893]
[1733998667602,1.1036,3899.7,3899.0,2.56474]
[1733998667805,6.03678893,3901.2,3899.3,2.56455]
[1733998667806,1.1036,3900.4,3899.3,2.56455]
[1733998669036,1.1036,3900.4,3898.5,8.79]
[1733998669348,1.1203,3899.7,3897.5,15.26341893]
[1733998669589,2.56471,3899.1,3897.8,2.56554]
[1733998669729,2.56491,3898.8,3897.5,6.47341893]
[1733998669902,1.0746,3898.8,3897.7,2.56559]
[1733998670099,1.0746,3898.8,3897.8,0.90390089]
[1733998670303,1.0746,3898.8,3897.8,3.46941089]
[1733998670755,1.0746,3898.8,3897.9,2.56547]
[1733998671050,1.0952,3899.2,3898.2,2.56527]
[1733998671259,1.0952,3899.2,3898.0,3.47341893]
[1733998671406,1.0952,3899.2,3898.0,3.91115091]
[1733998671605,1.0952,3899.2,3898.0,6.47656091]
[1733998672104,1.0952,3899.2,3898.1,2.56534]
[1733998672361,3.65983,3899.2,3898.0,3.91115091]
[1733998672569,1.0952,3899.2,3898.0,3.91115091]
[1733998672719,1.6924,3899.7,3898.6,2.565]
[1733998673134,1.6924,3899.7,3898.3,2.56515]
[1733998673359,1.6924,3899.7,3898.3,2.56521]
[1733998673669,4.2567,3899.7,3898.5,2.56508]
[1733998674671,4.2567,3899.7,3898.5,3.47341893]
[1733998674672,1.1424,3899.7,3898.5,3.47341893]
[1733998674876,0.2504,3899.8,3899.1,3.47341893]
[1733998675028,0.2504,3899.8,3899.5,2.56439]
[1733998675590,0.2504,3899.8,3899.7,2.56429]
[1733998675725,0.2504,3899.8,3899.7,2.820719]
[1733998677846,0.2504,3899.8,3899.7,5.820719]
[1733998679635,0.2504,3899.8,3899.7,3.256429]
[1733998679963,0.2504,3899.8,3899.7,0.256429]
[1733998680889,0.2504,3899.8,3899.7,2.820719]
[1733998681455,0.24730894,3899.8,3899.7,2.820719]
[1733998682273,0.24730894,3899.8,3899.7,0.256429]
[1733998682456,0.24730894,3899.8,3899.4,2.56444]
[1733998682457,0.24730894,3899.8,3899.1,6.03808893]
[1733998682660,0.24730894,3899.8,3898.8,11.35485]
[1733998683077,0.24730894,3899.8,3899.1,3.47341893]
[1733998683286,0.24730894,3899.8,3899.5,2.56442]
[1733998683483,0.24730894,3899.8,3899.6,2.56435]
[1733998683802,0.24730894,3899.8,3899.7,2.820725]
[1733998684687,2.56271,3902.2,3899.8,3.0]
[1733998684888,1.0614,3902.1,3900.6,6.03711893]
[1733998685221,1.0614,3902.1,3900.6,3.47341893]
[1733998685586,1.0614,3902.1,3900.1,3.47341893]
[1733998685782,2.563,3901.7,3900.3,2.5639]
[1733998686031,2.56311,3901.6,3900.4,2.5638]
[1733998686235,1.0883,3901.5,3900.5,2.56377]
[1733998686932,1.0883,3901.5,3900.2,3.79026189]
[1733998687081,1.0883,3901.5,3900.2,1.22634189]
[1733998687421,1.0883,3901.5,3900.3,0.46997608]
[1733998687778,2.56306,3901.6,3900.3,0.46997608]
[1733998687779,1.0314,3902.2,3900.6,3.47341893]
[1733998687979,1.0314,3902.2,3901.4,2.56316]
[1733998688582,1.0314,3902.2,3901.5,2.56307]
[1733998688729,1.0314,3902.2,3901.6,0.256307]
[1733998689455,1.1107,3902.7,3901.6,0.256307]
[1733998689668,1.1107,3902.7,3901.2,3.0]
[1733998689844,1.1107,3902.7,3902.2,2.56265]
[1733998690643,1.1107,3902.7,3901.7,2.56298]
[1733998690861,3.68555,3903.2,3902.0,2.56278]
[1733998691336,3.68555,3903.2,3901.6,15.26341893]
[1733998691337,0.55,3903.3,3902.1,2.5627]
[1733998691645,2.56197,3903.3,3902.2,0.25627]
[1733998692273,3.11183,3903.5,3902.4,2.56249]
[1733998692477,1.1235,3903.6,3902.2,0.25627]
[1733998692883,3.84803989,3903.6,3902.4,2.5625]
[1733998693046,3.68525,3903.6,3902.5,0.281877]
[1733998693250,1.1235,3903.6,3902.5,3.281877]
[1733998693465,1.1235,3903.6,3902.6,2.56239]
[1733998693631,1.1235,3903.6,3902.5,0.281877]
[1733998694065,2.56181,3903.5,3902.5,0.281877]
[1733998694268,2.56181,3903.5,3902.6,0.2844427]
[1733998694773,2.56208,3903.1,3902.5,0.281877]
[1733998694971,1.0618,3902.6,3901.1,3.47341893]
[1733998695157,1.0618,3902.6,3901.1,12.26341893]
[1733998695357,1.0618,3902.6,3901.6,2.56305]
[1733998695672,1.0618,3902.6,3901.3,2.56324]
[1733998695876,1.0618,3902.6,3901.4,1.48266589]
[1733998696236,1.0618,3902.6,3901.6,2.56299]
[1733998696433,1.0618,3902.6,3901.4,1.48266589]
[1733998696773,1.0327,3903.1,3901.8,2.5629]
[1733998697073,1.0327,3903.1,3902.0,2.56272]
[1733998697272,3.59476,3903.1,3902.0,2.56272]
[1733998697796,3.59476,3903.1,3901.9,0.25629]
[1733998698137,2.56253,3902.4,3901.9,0.25629]
[1733998698334,2.56235,3902.7,3901.9,0.25629]
[1733998698546,2.5622,3902.9,3902.0,0.325629]
[1733998698850,2.5623,3902.8,3902.0,0.325629]
[1733998699752,2.56241,3902.6,3902.0,0.325629]
[1733998699939,2.56256,3902.4,3901.6,8.79]
[1733998700580,2.56268,3902.2,3901.6,8.79]
[1733998700783,2.56205,3903.2,3900.7,8.79]
[1733998700784,2.56294,3901.8,3900.7,8.79]
[1733998700936,2.56294,3901.8,3900.9,1.23898679]
[1733998701782,1.1188,3902.1,3900.9,1.23898679]
[1733998701783,2.56279,3902.0,3900.9,1.23898679]
[1733998701986,1.1188,3902.1,3900.9,1.23898679]
[1733998702194,1.0292,3902.6,3901.3,3.0]
[1733998702360,1.0292,3902.6,3901.4,2.56316]
[1733998702694,1.0292,3902.6,3901.6,3.0]
[1733998703194,1.0292,3902.6,3901.7,3.0]
[1733998703615,1.0292,3902.6,3901.5,1.78265789]
[1733998703616,1.0292,3902.6,3901.5,4.78265789]
[1733998703820,1.0292,3902.6,3901.4,2.56318]
[1733998703821,1.0292,3902.6,3900.9,10.02898679]
[1733998704125,3.47341893,3903.2,3899.3,0.98464739]
[1733998704126,1.105,3901.3,3900.1,8.79]
[1733998704291,3.66824,3901.3,3899.7,8.79]
[1733998704644,2.56371,3900.6,3899.7,8.79]
[1733998704913,2.56344,3901.0,3899.7,8.79]
[1733998705075,2.56377,3900.5,3899.7,8.79]
[1733998705277,2.56377,3900.5,3899.8,0.879]
[1733998705786,1.105,3901.3,3899.8,0.879]
[1733998705787,2.56366,3900.7,3899.8,0.879]
[1733998705988,0.55,3901.2,3899.8,0.879]
[1733998706199,2.56358,3900.8,3899.8,3.879]
[1733998706419,1.105,3901.3,3899.8,3.879]
[1733998706618,2.56331,3901.2,3900.0,2.56404]
[1733998706975,2.56355,3900.9,3899.9,1.2669]
[1733998707477,1.105,3901.3,3899.9,1.2669]
[1733998708296,1.105,3901.3,3900.1,2.56401]
[1733998708883,1.105,3901.3,3899.9,1.2669]
[1733998709082,2.56331,3901.2,3900.0,1.61248279]
[1733998709403,1.105,3901.3,3900.0,1.61248279]
[1733998709583,1.105,3901.3,3900.4,2.5638]
[1733998710704,3.0,3902.1,3900.0,1.61248279]
[1733998710705,0.55,3901.6,3900.5,2.56374]
[1733998710891,1.0498,3901.8,3900.8,2.56354]
[1733998711217,1.0498,3901.8,3901.0,2.56342]
[1733998711426,1.0498,3901.8,3900.9,0.256354]
[1733998711580,1.0498,3901.8,3901.2,2.5633]
[1733998711782,1.0498,3902.6,3901.6,2.56298]
[1733998712105,1.0498,3902.6,3901.8,2.5629]
[1733998712305,1.0498,3902.6,3901.9,2.56279]
[1733998712508,1.0498,3902.6,3901.2,3.0]
[1733998712706,1.0498,3902.6,3902.1,2.5627]
[1733998712922,1.0498,3903.2,3901.7,3.0]
[1733998713225,1.0498,3903.2,3902.5,2.5624]
[1733998713560,1.0498,3903.2,3902.1,2.56267]
[1733998713683,2.56217,3903.0,3902.2,0.256267]
[1733998713888,1.0498,3903.2,3901.8,8.79]
[1733998714138,1.1012,3902.8,3901.8,8.79]
[1733998714341,1.1012,3902.8,3901.8,11.35291]
[1733998715479,1.1012,3902.8,3901.8,8.79]
[1733998715677,2.5624,3902.6,3901.8,8.79]
[1733998715943,1.1012,3902.8,3901.8,9.925306]
[1733998716130,2.56234,3902.7,3901.8,9.925306]
[1733998716751,1.1012,3902.8,3901.8,9.925306]
[1733998717118,3.66348,3902.8,3901.8,9.925306]
[1733998717441,2.56233,3902.7,3901.8,9.925306]
[1733998717943,2.56245,3902.6,3901.8,1.135306]
[1733998718146,2.56245,3902.6,3901.4,5.56317]
[1733998718672,1.1012,3902.8,3901.3,1.479]
[1733998718878,1.1012,3902.8,3901.3,3.0]
[1733998719028,1.1012,3902.8,3901.0,0.51502453]
[1733998719563,1.1012,3902.8,3901.7,2.56294]
[1733998719734,1.1012,3902.8,3901.2,2.56329]
[1733998719735,1.1012,3902.8,3902.0,2.56277]
[1733998720615,1.1012,3902.8,3901.5,8.79]
[1733998720856,1.1012,3902.8,3902.3,2.56255]
[1733998721063,1.0517,3903.4,3901.6,13.31634189]
[1733998721360,1.0517,3903.4,3902.5,2.56244]
[1733998721759,1.0517,3903.4,3902.4,2.56249]
[1733998723937,1.0517,3903.4,3902.1,3.0]
[1733998724138,1.0517,3903.4,3902.2,0.556274]
[1733998724361,1.0517,3903.4,3902.0,3.0]
[1733998724521,1.0517,3903.4,3902.1,3.0]
[1733998724722,1.0517,3903.4,3902.9,2.56218]
[1733998725375,1.0517,3903.4,3902.4,2.56249]
[1733998725564,1.0517,3903.4,3902.7,2.56231]
[1733998726056,1.0517,3903.4,3903.3,2.56193]
[1733998726287,1.0435,3904.3,3903.7,2.56162]
[1733998726694,1.0435,3904.3,3903.9,2.56153]
[1733998727262,1.0435,3904.3,3903.2,3.0]
[1733998727508,1.0435,3904.3,3904.0,2.56141]
[1733998728202,1.0435,3904.3,3903.6,2.56171]
[1733998728407,1.0435,3904.3,3903.7,0.256171]
[1733998728610,1.0435,3904.3,3903.8,2.56154]
[1733998729103,1.0435,3904.9,3903.1,11.79]
[1733998729266,1.0435,3904.9,3903.9,2.56148]
[1733998729614,1.0435,3904.9,3904.0,2.56144]
[1733998730606,1.0435,3904.9,3903.4,3.47341893]
[1733998730764,1.0435,3904.9,3904.7,2.561]
[1733998730966,1.1371,3905.6,3903.9,8.79]
[1733998731197,1.1371,3905.6,3904.0,3.0]
[1733998731406,2.56055,3905.5,3904.2,2.56131]
[1733998731706,1.1371,3905.6,3904.2,2.56131]
[1733998732006,1.1371,3905.6,3903.8,3.0]
[1733998732007,1.0403,3905.2,3904.3,0.256131]
[1733998732306,3.601,3905.2,3904.1,3.0]
[1733998733010,3.601,3905.2,3903.7,8.79]
[1733998733011,2.56087,3905.0,3903.8,3.0]
[1733998733168,1.0403,3905.2,3903.8,3.0]
[1733998733368,2.56088,3905.0,3903.9,3.74051]
[1733998734596,1.0403,3905.2,3904.1,2.5614]
[1733998735204,2.56082,3905.0,3903.9,1.179]
[1733998735381,1.0403,3905.2,3903.9,1.179]
[1733998735382,3.60099,3905.2,3904.0,2.56145]
[1733998736108,2.56075,3905.1,3904.0,2.56145]
[1733998736320,2.56075,3905.1,3904.1,0.674045]
[1733998737018,1.0403,3905.2,3904.1,0.674045]
[1733998737219,1.0939,3904.4,3903.3,3.0]
[1733998737513,2.56128,3904.3,3903.3,3.0]
[1733998737716,1.0939,3904.4,3903.3,5.56192]
[1733998738210,1.0939,3905.3,3903.5,3.0]
[1733998738410,2.56087,3905.0,3903.9,2.56149]
[1733998738722,1.0939,3905.3,3904.1,3.0]
[1733998738929,2.56069,3905.2,3904.0,0.256149]
[1733998739089,2.56069,3905.2,3904.0,2.817609]
[1733998739290,2.56069,3905.2,3904.1,3.0]
[1733998739489,2.56069,3905.2,3904.1,2.5614]
[1733998739689,2.56069,3905.2,3904.2,0.2817549]
[1733998741337,1.0939,3905.3,3904.2,0.2817549]
[1733998741640,2.56088,3905.0,3904.0,0.256149]
[1733998741945,0.55,3905.0,3904.0,0.256149]
[1733998742093,2.56108,3904.6,3904.0,0.256149]
[1733998742294,2.56124,3904.4,3904.0,0.256149]
[1733998742526,2.56144,3904.1,3903.0,11.35211]
[1733998742709,1.065,3904.5,3902.9,2.56217]
[1733998742710,2.56121,3904.4,3902.9,2.56217]
[1733998743030,1.1116,3904.3,3902.7,8.79]
[1733998743203,2.56152,3904.0,3902.8,0.879]
[1733998743607,2.56155,3903.9,3902.8,0.879]
[1733998743807,2.56178,3903.6,3902.8,0.879]
[1733998743994,2.56108,3904.6,3902.4,2.56248]
[1733998743995,3.64316,3903.5,3902.4,2.56248]
[1733998744194,1.0813,3903.5,3902.6,2.56238]
[1733998744499,1.0813,3903.5,3902.6,0.505319]
[1733998744999,1.0813,3903.5,3902.6,3.067699]
[1733998745140,1.0813,3903.5,3902.6,2.56238]
[1733998745359,1.0813,3903.5,3902.7,3.256238]
[1733998745506,2.5619,3903.4,3902.7,0.256238]
[1733998745713,2.56205,3903.2,3902.1,3.06736317]
[1733998746209,2.56208,3903.1,3901.7,8.79]
[1733998746513,1.0813,3903.5,3902.5,2.56245]
[1733998747049,2.56212,3903.1,3901.9,0.63894735]
[1733998747225,1.0268,3903.4,3901.9,3.63894735]
[1733998747422,3.0,3904.1,3902.0,1.49917974]
[1733998747423,2.56226,3902.8,3902.0,1.49917974]
[1733998747626,2.56233,3902.7,3902.0,1.49917974]
[1733998747827,2.56233,3902.7,3901.6,2.56303]
[1733998748134,2.56244,3902.6,3901.4,2.56317]
[1733998748338,1.0268,3902.5,3901.4,2.56317]
[1733998748537,1.0268,3902.5,3900.9,8.79]
[1733998748755,2.56268,3902.2,3901.1,2.56335]
[1733998748975,2.56272,3902.1,3901.0,1.135352]
[1733998749119,1.0268,3902.0,3901.0,1.135352]
[1733998749324,2.56299,3901.7,3901.1,0.9925352]
[1733998749523,2.56306,3901.6,3901.1,0.9925352]
[1733998749753,2.56292,3901.8,3900.4,0.51320661]
[1733998750096,3.5896,3902.0,3900.8,2.56354]
[1733998750221,2.56285,3901.9,3900.8,2.56354]
[1733998750424,2.56285,3901.9,3900.6,2.56369]
[1733998750680,2.56295,3901.8,3900.6,2.56369]
[1733998750978,1.0967,3901.6,3900.7,0.30768966]
[1733998751265,1.0967,3901.6,3900.5,2.56377]
[1733998752118,1.6826,3902.7,3901.2,2.5633]
[1733998752320,1.1326,3902.6,3901.2,2.5633]
[1733998752534,1.1326,3902.6,3901.4,2.56314]
[1733998752739,2.56254,3902.4,3901.5,0.256314]
[1733998753040,3.0,3902.9,3900.7,3.0]
[1733998753041,1.1326,3902.3,3900.9,2.56349]
[1733998753287,1.1326,3902.3,3901.4,2.56317]
[1733998753793,3.69519,3902.3,3901.1,2.56337]
[1733998753938,3.69519,3902.3,3901.2,3.0]
[1733998754135,1.1326,3902.3,3901.3,0.556337]
[1733998754435,1.1326,3902.3,3900.5,3.0]
[1733998754436,1.1326,3902.3,3901.4,2.56314]
[1733998754865,2.56242,3902.6,3901.4,2.56314]
[1733998755064,1.0729,3902.7,3901.2,3.0]
[1733998755269,1.0729,3902.7,3901.9,2.56284]
[1733998755436,1.0729,3902.7,3901.5,3.0]
[1733998755638,1.0729,3902.7,3901.8,2.5629]
[1733998756475,1.0729,3902.7,3901.9,2.56284]
[1733998758318,1.0729,3902.7,3902.0,2.56277]
[1733998758454,1.0761,3903.8,3902.9,2.56219]
[1733998758801,1.0761,3903.8,3902.7,2.56231]
[1733998758953,1.0761,3903.8,3902.7,2.56229]
[1733998759956,3.6377,3903.8,3902.7,2.56229]
[1733998760509,1.0761,3903.8,3903.2,2.56197]
[1733998760709,1.0761,3903.8,3903.3,2.56193]
[1733998761013,1.0761,3903.8,3903.4,0.256193]
[1733998761211,1.0761,3903.8,3903.2,2.56199]
[1733998761394,0.26629245,3905.6,3903.8,3.0]
[1733998761560,0.26629245,3905.6,3905.1,2.56073]
[1733998761912,0.1648341,3905.7,3905.3,2.56061]
[1733998762063,0.1648341,3905.7,3905.4,2.56054]
[1733998762259,0.1648341,3905.7,3904.7,11.79]
[1733998762260,0.1648341,3905.7,3904.7,8.79]
[1733998762512,1.0649,3905.4,3904.7,8.79]
[1733998765504,1.0649,3905.4,3903.8,0.50694404]
[1733998765505,0.55,3905.3,3904.2,2.5613]
[1733998765813,0.55,3905.3,3904.0,2.56145]
[1733998765814,0.71149,3905.3,3904.0,2.56145]
[1733998765999,0.71149,3905.3,3904.1,2.56139]
[1733998766305,1.0693,3905.2,3903.4,11.35182]
[1733998766603,0.178079,3905.1,3904.1,2.5614]
[1733998766804,0.178079,3905.1,3903.7,1.48252389]
[1733998767015,2.738839,3905.1,3903.9,2.56153]
[1733998767502,1.6584,3904.9,3903.6,2.56169]
[1733998767658,2.56102,3904.7,3903.3,2.56187]
[1733998767859,0.55,3904.9,3903.1,3.47341893]
[1733998767860,3.66948,3904.6,3903.4,3.16537889]
[1733998768091,1.1084,3904.6,3903.4,3.16537889]
[1733998768616,1.1084,3904.6,3903.7,2.56164]
[1733998768759,1.1084,3904.6,3903.8,2.56158]
[1733998769316,1.1084,3904.6,3903.4,0.60352889]
[1733998769463,1.1084,3904.6,3903.9,3.0]
[1733998769656,1.1084,3904.6,3904.3,2.56127]
[1733998769909,1.1084,3904.6,3904.4,2.56117]
[1733998770148,2.56044,3905.6,3904.1,3.47341893]
[1733998770149,1.0541,3905.6,3904.1,3.47341893]
[1733998770274,1.0541,3905.6,3904.2,0.34734189]
[1733998770619,1.0541,3905.6,3904.5,2.56113]
[1733998771430,2.5606,3905.4,3904.2,2.90863189]
[1733998771612,1.6739,3905.3,3904.2,2.90863189]
[1733998771919,0.55,3905.1,3903.8,8.79]
[1733998772117,1.1239,3904.6,3903.8,8.79]
[1733998772312,1.1239,3904.6,3903.5,0.66134333]
[1733998772478,3.68499,3904.6,3903.4,3.16532889]
[1733998772667,3.11115,3904.5,3903.4,2.5618]
[1733998773067,3.11115,3904.5,3903.2,2.56199]
[1733998773666,2.56123,3904.4,3903.2,2.56199]
[1733998773861,2.56123,3904.4,3903.2,2.56195]
[1733998775308,2.56123,3904.4,3903.3,0.256195]
[1733998775621,1.1206,3904.1,3903.0,2.56212]
[1733998776571,1.1206,3904.1,3903.1,2.56206]
[1733998777405,1.1206,3904.1,3903.0,2.56212]
[1733998777608,1.1206,3904.1,3902.7,5.56228]
[1733998777813,1.1206,3904.1,3903.3,2.56191]
[1733998778028,1.1206,3904.1,3903.4,2.818041]
[1733998778521,1.1206,3904.1,3903.4,0.256191]
[1733998778698,1.1206,3904.1,3903.4,2.56185]
[1733998779016,1.113,3905.0,3903.3,0.44797438]
[1733998779384,1.113,3905.0,3903.7,2.56167]
[1733998779628,1.113,3905.0,3904.3,2.56127]
[1733998779994,1.113,3905.0,3903.8,3.0]
[1733998780185,1.113,3905.0,3904.1,2.56139]
[1733998780373,2.56095,3904.8,3903.8,1.435167]
[1733998780676,3.64834,3904.7,3903.8,1.435167]
[1733998780891,3.64834,3904.7,3903.6,2.56169]
[1733998781133,0.55,3904.6,3903.3,2.56187]
[1733998781276,3.6485,3904.5,3903.3,2.56187]
[1733998781894,1.0873,3904.5,3903.0,0.52408903]
[1733998782078,1.0873,3904.5,3903.1,4.42204436]
[1733998782278,1.0873,3904.5,3904.1,2.56138]
[1733998782475,1.0873,3904.5,3904.2,2.56129]
[1733998783319,1.0873,3904.5,3904.3,2.56127]
[1733998783508,1.0873,3904.5,3904.3,2.56125]
[1733998783826,1.0873,3904.5,3904.1,2.56139]
[1733998783982,1.0873,3904.5,3904.2,0.256139]
[1733998784523,1.0873,3904.5,3904.2,2.817429]
[1733998786023,1.0873,3904.5,3904.2,0.256139]
[1733998786226,1.0873,3904.5,3903.5,2.5618]
[1733998786413,1.0873,3904.5,3903.4,3.0]
[1733998786617,1.0873,3904.5,3903.9,2.56151]
[1733998786818,1.0873,3904.5,3904.0,2.56144]
[1733998787017,1.0873,3904.5,3903.6,3.0]
[1733998787018,1.0873,3904.5,3903.8,3.0]
[1733998787207,1.0873,3904.5,3903.5,2.56173]
[1733998787539,3.0,3905.6,3903.3,8.79]
[1733998787540,2.56127,3904.4,3903.6,0.28589616]
[1733998787737,1.0971,3904.3,3903.3,8.79]
[1733998787885,1.0971,3903.9,3903.3,8.79]
[1733998788092,1.0971,3903.9,3902.7,2.56231]
[1733998788093,3.6587,3903.9,3902.7,2.56231]
[1733998788591,1.0971,3903.6,3902.5,2.56245]
[1733998788786,1.0971,3904.0,3903.1,2.56203]
[1733998789019,1.0971,3904.0,3902.7,0.44797438]
[1733998789222,1.0971,3904.0,3903.4,2.56182]
[1733998789618,1.0971,3904.0,3902.8,8.79]
[1733998789818,1.0971,3904.0,3902.9,4.20564894]
[1733998790099,1.0971,3904.0,3903.0,2.56209]
[1733998790655,1.0971,3904.0,3902.9,4.20564894]
[1733998790828,1.0971,3904.0,3903.1,2.56205]
[1733998791232,1.0971,3904.0,3903.4,2.56184]
[1733998791408,1.0971,3904.0,3903.5,0.256184]
[1733998792246,1.0971,3904.0,3903.5,2.817944]
[1733998792644,1.0971,3904.0,3903.5,0.256184]
[1733998792848,1.0524,3904.6,3903.8,2.56155]
[1733998793012,1.0524,3904.6,3904.0,2.56143]
[1733998793358,1.0524,3904.6,3903.1,13.91412]
[1733998793359,1.0524,3904.6,3904.1,2.5614]
[1733998793542,1.0524,3905.3,3904.4,2.56119]
[1733998793743,1.0524,3905.3,3903.8,3.0]
[1733998793920,1.0524,3905.3,3903.9,1.179]
[1733998794140,2.70919588,3905.2,3904.1,2.56137]
[1733998794440,2.56072,3905.2,3904.1,2.56137]
[1733998795192,2.5608,3905.1,3904.0,2.56145]
[1733998795754,1.1117,3905.3,3903.9,1.179]
[1733998795954,0.1648341,3905.7,3903.6,2.56171]
[1733998795955,1.1117,3904.6,3903.6,2.56171]
[1733998796254,1.1117,3904.6,3903.8,2.56155]
[1733998797183,1.1117,3904.6,3903.3,3.0]
[1733998797184,1.1117,3904.6,3903.6,2.56172]
[1733998797390,3.67282,3904.6,3903.4,2.56186]
[1733998797690,2.56161,3903.8,3902.9,1.20564894]
[1733998797853,2.56176,3903.6,3902.5,3.63390184]
[1733998798192,1.0414,3903.7,3902.6,2.818615]
[1733998798495,2.56174,3903.6,3902.6,2.818625]
[1733998798646,2.56183,3903.5,3902.6,0.256245]
[1733998799042,3.60307,3903.7,3902.6,0.256245]
[1733998799247,3.60307,3903.7,3902.5,2.56243]
[1733998799248,1.0414,3903.7,3902.7,0.2818675]
[1733998799465,2.56181,3903.5,3902.7,0.2818675]
[1733998799644,2.56185,3903.5,3902.3,2.56257]
[1733998799845,1.0586,3903.6,3902.0,1.07148184]
[1733998800044,1.0586,3902.9,3901.8,2.56291]
[1733998800787,1.0586,3902.9,3901.6,1.07148184]
[1733998800788,1.0586,3902.9,3902.1,2.56272]
[1733998800948,1.0586,3902.9,3902.2,2.56265]
[1733998801142,1.0586,3902.9,3902.3,0.256265]
[1733998801887,1.0586,3902.9,3902.3,2.56258]
[1733998802069,1.0586,3902.9,3902.1,2.56272]
[1733998802393,1.0586,3902.9,3901.9,2.56283]
[1733998802798,2.56227,3902.8,3901.8,1.07148184]
[1733998802996,2.56227,3902.8,3901.7,6.63445184]
[1733998803154,2.56227,3902.8,3901.8,2.13268427]
[1733998803355,1.0586,3902.9,3901.9,1.25738103]
[1733998803670,1.0586,3902.9,3901.9,2.56281]
[1733998803890,1.0586,3902.9,3902.0,1.25703522]
[1733998804200,1.0586,3902.9,3901.9,2.56281]
[1733998804405,1.0586,3902.9,3902.0,0.45100072]
[1733998805106,1.0586,3902.9,3902.1,1.25714412]
[1733998805360,1.0586,3902.9,3902.0,0.45100072]
[1733998805917,1.0991,3902.7,3901.5,1.07148184]
[1733998806098,2.56245,3902.5,3901.2,1.07148184]
[1733998806303,1.0991,3901.7,3900.8,2.05579662]
[1733998806505,1.0991,3901.7,3900.9,2.56349]
[1733998806815,1.0991,3901.7,3900.8,0.98431478]
[1733998807015,1.0991,3901.7,3900.9,0.25710146]
[1733998807317,1.0431,3903.0,3900.9,1.51375114]
[1733998807500,1.0431,3903.0,3901.0,4.25664968]
[1733998807675,2.56223,3902.9,3901.8,2.56291]
[1733998807877,2.56231,3902.8,3901.6,2.56303]
[1733998808076,1.0869,3902.7,3901.7,0.256303]
[1733998808491,1.0869,3902.7,3901.8,2.56287]
[1733998808792,1.0869,3902.7,3901.9,2.56284]
[1733998810733,1.0869,3902.7,3901.7,0.256303]
[1733998810932,1.0869,3902.7,3901.7,2.56297]
[1733998811295,3.64924,3902.7,3901.4,3.0]
[1733998811633,1.0501,3902.3,3901.2,2.5633]
[1733998811789,2.56269,3902.2,3901.3,3.0]
[1733998811993,2.56269,3902.2,3901.1,2.56336]
[1733998812188,1.0686,3901.9,3900.9,3.25710146]
[1733998812396,1.0686,3901.9,3900.9,5.82060146]
[1733998812608,1.0686,3901.9,3901.0,2.56344]
[1733998812810,1.0686,3901.9,3901.1,2.56335]
[1733998813023,1.0686,3901.9,3900.9,3.25710146]
[1733998813242,1.0686,3901.9,3901.3,2.5632]
[1733998813448,1.0686,3901.9,3901.0,3.7806222]
[1733998813597,1.0686,3901.9,3901.1,2.56334]
[1733998814730,1.1,3902.7,3901.5,2.56305]
[1733998814940,1.1,3902.7,3901.0,1.2172422]
[1733998814941,1.1,3902.7,3901.7,2.56297]
[1733998815140,1.1,3902.7,3901.2,3.0]
[1733998815141,3.66236,3902.7,3901.2,3.0]
[1733998815325,3.66236,3902.7,3901.5,2.56311]
[1733998815545,2.56239,3902.6,3901.5,2.56311]
[1733998816049,1.0681,3902.5,3901.3,0.93440422]
[1733998816257,2.56261,3902.3,3901.3,0.93440422]
[1733998816623,1.0681,3902.5,3901.3,3.49763422]
[1733998816624,3.63056,3902.5,3901.3,3.49763422]
[1733998816830,3.63056,3902.5,3901.4,0.64976342]
[1733998817236,2.56255,3902.4,3901.4,0.64976342]
[1733998817783,1.042,3902.1,3901.4,0.64976342]
[1733998817933,2.56311,3901.6,3901.0,1.2172422]
[1733998818284,1.1063,3901.5,3901.0,1.2172422]
[1733998818420,1.1063,3901.5,3900.5,2.56376]
[1733998819331,1.1063,3901.5,3900.2,2.5639]
[1733998819653,1.1063,3901.5,3899.9,8.79]
[1733998819863,1.1063,3901.5,3900.6,2.56367]
[1733998820159,1.1063,3901.5,3900.2,0.5092245]
[1733998820419,1.1063,3901.5,3900.6,2.56364]
[1733998820570,1.1063,3901.5,3900.7,0.256364]
[1733998821376,1.1063,3901.5,3900.5,3.0]
[1733998821574,3.66946,3901.5,3900.4,2.56382]
[1733998822134,1.1063,3901.5,3900.6,2.5637]
[1733998822476,1.1063,3901.5,3900.3,3.0]
[1733998822663,1.1063,3901.5,3900.5,3.11377]
[1733998822828,2.94259011,3903.7,3900.7,0.55]
[1733998822829,1.102,3902.5,3900.7,0.55]
[1733998823035,1.102,3902.5,3901.4,2.56318]
[1733998823359,1.102,3902.5,3901.6,2.56303]
[1733998824334,1.102,3902.5,3901.4,2.56318]
[1733998824577,1.102,3902.5,3901.5,0.256318]
[1733998824755,3.66452,3902.5,3901.5,0.256318]
[1733998824950,1.102,3902.5,3901.5,0.256318]
[1733998825153,1.102,3902.5,3900.9,12.34]
[1733998825154,1.102,3902.5,3901.6,2.56303]
[1733998825381,1.102,3902.5,3901.7,2.56295]
[1733998825553,1.102,3902.5,3901.8,3.46069262]